fUSD/lending_fUSD_20250618
["ID","MTS","AMOUNT","RATE_DAILY","PERIOD"]
[366469805,1750273847892,-156.475276,0.00019996,2]
[366469806,1750273847904,-858.13696919,0.00019996,2]
[366469807,1750273847915,-151.0,0.00019996,2]
[366469808,1750273847924,-151.0,0.00019996,2]
[366469809,1750273847934,-151.0,0.00019996,2]
[366469810,1750273847944,-151.0,0.00019996,2]
[366469811,1750273847954,-151.0,0.00019996,2]
[366469813,1750273847964,-7333.9155504,0.00019996,2]
[366469815,1750273847973,-151.0,0.00019996,2]
[366469817,1750273847983,-32237.2252813,0.00019996,2]
[366469818,1750273847992,-151.0,0.00019996,2]
[366469819,1750273848002,-289.277876,0.00019996,2]
[366469820,1750273848012,-151.0,0.00019996,2]
[366469821,1750273848025,-151.0,0.00019996,2]
[366469822,1750273848043,-151.0,0.00019996,2]
[366469823,1750273848053,-151.0,0.00019996,2]
[366469824,1750273848063,-37204.5507733,0.00019996,2]
[366469825,1750273848074,-151.0,0.00019996,2]
[366469826,1750273848084,-151.0,0.00019996,2]
[366469827,1750273848094,-151.0,0.00019996,2]
[366469828,1750273848104,-151.0,0.00019996,2]
[366469829,1750273848114,-151.0,0.00019996,2]
[366469830,1750273848123,-151.0,0.00019996,2]
[366469831,1750273848134,-151.0,0.00019996,2]
[366469832,1750273848144,-151.0,0.00019996,2]
[366469833,1750273848153,-151.0,0.00019996,2]
[366469834,1750273848163,-300.0,0.00019999,2]
[366469835,1750273848173,-300.0,0.00019999,2]
[366469836,1750273848183,-300.0,0.00019999,2]
[366469838,1750273848193,-150.0,0.00019999,2]
[366469840,1750273848202,-150.0,0.00019999,2]
[366469842,1750273848211,-550.0,0.0002,2]
[366469844,1750273848221,-342.74941773,0.0002,2]
[366469846,1750273848231,-38655.47020481,0.0002,2]
[366469848,1750273848240,-3772.99600045,0.0002,2]
[366469850,1750273848251,-139218.78742561,0.0002,2]
[366469852,1750273848262,-277.5049164,0.0002,2]
[366469854,1750273848274,-11963.63797228,0.0002,2]
[366469856,1750273848284,-8863.01002773,0.0002,2]
[366469869,1750274021503,259.0,0.00015932,2]
[366469875,1750274450368,235.48,0.00013699,2]
[366469898,1750274918758,34510.65,0.000151,2]
[366469921,1750275032275,-301.19,0.00016668,2]
[366469922,1750275032285,-300.0,0.00016668,2]
[366469923,1750275032295,-900.7043,0.00016668,2]
[366469924,1750275032435,-299.2957,0.00016668,2]
[366469925,1750275032445,-600.0,0.00016669,2]
[366469926,1750275032454,-301.76,0.00016669,2]
[366469927,1750275032464,-302.88,0.00016669,2]
[366469928,1750275032474,-303.7,0.00016669,2]
[366469929,1750275032483,-302.5,0.00016669,2]
[366469930,1750275032493,-302.27,0.00016669,2]
[366469931,1750275032502,-303.21,0.00016669,2]
[366469932,1750275032512,-305.86,0.00016669,2]
[366469955,1750275032832,-301.19,0.00016669,2]
[366469959,1750275032873,-304.36,0.00016671,2]
[366469961,1750275032883,-304.98,0.00016671,2]
[366469963,1750275032893,-303.06,0.00016671,2]
[366469965,1750275032903,-303.53,0.00016671,2]
[366469967,1750275032912,-300.76,0.00016671,2]
[366469969,1750275032921,-305.86,0.00016671,2]
[366469971,1750275032931,-303.96,0.00016671,2]
[366469973,1750275032940,-304.11,0.00016671,2]
[366469975,1750275032950,-303.76,0.00016671,2]
[366469977,1750275032960,-303.42,0.00016671,2]
[366469979,1750275032970,-300.0,0.00016671,2]
[366469980,1750275032980,-300.0,0.00016671,2]
[366469981,1750275032990,-300.04,0.00016672,2]
[366469982,1750275032999,-305.66,0.00016672,2]
[366469983,1750275033013,-302.65,0.00016672,2]
[366469984,1750275033023,-301.64,0.00016672,2]
[366469985,1750275033034,-304.18,0.00016672,2]
[366469986,1750275033043,-304.98,0.00016672,2]
[366469987,1750275033054,-301.21,0.00016672,2]
[366469988,1750275033065,-303.11,0.00016672,2]
[366469989,1750275033075,-301.82,0.00016672,2]
[366469990,1750275033086,-499.68,0.00016672,2]
[366469991,1750275033101,-496.09,0.00016672,2]
[366469992,1750275033112,-300.17,0.00016672,2]
[366469993,1750275033123,-300.0,0.00016673,2]
[366469994,1750275033133,-302.23,0.00016673,2]
[366469995,1750275033144,-302.62,0.00016673,2]
[366469996,1750275033156,-304.94,0.00016673,2]
[366469997,1750275033167,-300.67,0.00016673,2]
[366469998,1750275033178,-305.49,0.00016673,2]
[366469999,1750275033188,-300.54,0.00016673,2]
[366470000,1750275033199,-301.16,0.00016673,2]
[366470001,1750275033209,-958.82,0.00016684,2]
[366470002,1750275033219,-303.22,0.00016684,2]
[366470003,1750275033231,-301.75,0.00016684,2]
[366470004,1750275033241,-304.76,0.00016685,2]
[366470005,1750275033251,-303.08,0.00016685,2]
[366470006,1750275033263,-305.6,0.00016686,2]
[366470007,1750275033273,-300.22,0.00016686,2]
[366470008,1750275033283,-303.76,0.00016691,2]
[366470009,1750275033294,-300.05,0.00016726,2]
[366470010,1750275033303,-304.15,0.00016931,2]
[366470011,1750275033314,-201.0,0.00017169,2]
[366470012,1750275033324,-202.0,0.00017169,2]
[366470013,1750275033334,-204.0,0.00017169,2]
[366470014,1750275033344,-201.0,0.00017169,2]
[366470015,1750275033353,-3746.30281836,0.000175,2]
[366470016,1750275033432,-850.0,0.000175,2]
[366470017,1750275033475,-787.72537109,0.000175,2]
[366470018,1750275033487,-696.15910857,0.000175,2]
[366470019,1750275033499,-11389.49877703,0.000175,2]
[366470020,1750275033510,-10625.17432388,0.00017736,2]
[366470027,1750275038383,-1284.10286343,0.00017736,2]
[366470028,1750275038394,-1538.24002402,0.00017736,2]
[366470029,1750275038410,-399.16792518,0.00017736,2]
[366470030,1750275038455,-953.82884201,0.00017736,2]
[366470031,1750275038500,-9099.48602148,0.00017736,2]
[366470033,1750275038510,-1170.22,0.00017757,2]
[366470035,1750275038519,-163.310799,0.00017761,2]
[366470037,1750275038674,-670.61000267,0.00017761,2]
[366470038,1750275038684,-285.244075,0.0001785,2]
[366470158,1750275040822,-380.755925,0.0001785,2]
[366470159,1750275040832,-823.56380015,0.000179,2]
[366470161,1750275040842,-201.0,0.00017948,3]
[366470163,1750275040852,-150.0,0.00018,2]
[366470165,1750275040861,-150.0,0.00018,2]
[366470167,1750275040871,-150.0,0.00018072,2]
[366470169,1750275040884,-300.0,0.00018082,2]
[366470171,1750275040893,-119.42747794,0.00018143,2]
[366470174,1750275040905,-369.09252206,0.00018143,2]
[366470176,1750275040914,-372.5,0.00018143,2]
[366470178,1750275040924,-317.0,0.00018211,2]
[366470180,1750275040933,-2095.88,0.00018218,2]
[366470181,1750275040943,-438.22,0.00018218,2]
[366470183,1750275040952,-353.79,0.0001831,2]
[366470186,1750275040962,-599.29388184,0.00018336,2]
[366470188,1750275040974,-120.70611816,0.00018336,2]
[366470190,1750275040984,-300.0,0.00018338,2]
[366470192,1750275040994,-300.0,0.00018339,2]
[366470194,1750275041004,-200.83129135,0.00018555,2]
[366470196,1750275041017,-622.73250872,0.00018555,2]
[366470198,1750275041028,-24.13290058,0.00018727,4]
[366470211,1750275041155,-176.86709942,0.00018727,4]
[366470213,1750275041166,-250.0,0.00018815,2]
[366470215,1750275041176,-334.21,0.00018885,2]
[366470218,1750275041187,-200.0,0.00018885,2]
[366470220,1750275041197,-2000.0,0.000189,2]
[366470222,1750275041207,-157.19,0.00018923,2]
[366470224,1750275041217,-157.19,0.00018929,2]
[366470226,1750275041226,-150.0,0.00018934,2]
[366470228,1750275041236,-150.0,0.00018934,2]
[366470230,1750275041246,-150.0,0.00018934,2]
[366470232,1750275041255,-157.19,0.00018934,2]
[366470234,1750275041265,-157.19,0.0001894,2]
[366470236,1750275041274,-157.19,0.00018945,2]
[366470238,1750275041283,-157.19,0.00018951,2]
[366470240,1750275041293,-157.19,0.00018957,2]
[366470242,1750275041303,-395.33,0.00018959,2]
[366470244,1750275041312,-150.0,0.00018961,2]
[366470246,1750275041322,-150.0,0.00018961,2]
[366470248,1750275041331,-151.0,0.00018962,2]
[366470250,1750275041340,-1957.856,0.00018962,2]
[366470252,1750275041350,-151.0,0.00018962,2]
[366470254,1750275041360,-207.4,0.00018962,2]
[366470256,1750275041369,-157.19,0.00018962,2]
[366470258,1750275041378,-157.19,0.00018968,2]
[366470260,1750275041392,-157.19,0.00018973,2]
[366470261,1750275041401,-157.19,0.00018979,2]
[366470263,1750275041409,-157.19,0.00018984,2]
[366470265,1750275041419,-200.0,0.00018989,2]
[366470267,1750275041428,-200.0,0.00018989,2]
[366470269,1750275041438,-157.19,0.0001899,2]
[366470271,1750275041447,-157.19,0.00018995,2]
[366470273,1750275041455,-150.0,0.00019001,2]
[366470275,1750275041465,-150.0,0.00019001,2]
[366470277,1750275041473,-157.19,0.00019001,2]
[366470279,1750275041482,-157.19,0.00019007,2]
[366470281,1750275041490,-157.19,0.00019012,2]
[366470283,1750275041499,-157.19,0.00019018,2]
[366470285,1750275041508,-1000.0,0.00019113,2]
[366470287,1750275041517,-151.0,0.00019178,2]
[366470289,1750275041526,-171.13,0.00019178,2]
[366470291,1750275041535,-823.56380007,0.0001921,2]
[366470293,1750275041545,-201.0,0.00019505,5]
[366470295,1750275041555,-177.14,0.00019513,2]
[366470297,1750275041564,-351.158585,0.00019599,2]
[366470299,1750275041573,-300.0,0.000197,7]
[366470301,1750275041582,-156.587,0.00019726,2]
[366470303,1750275041591,-700.0,0.000198,7]
[366470305,1750275041601,-1103.72,0.00019845,2]
[366470307,1750275041609,-823.56380007,0.00019866,2]
[366470309,1750275041618,-171.55203436,0.000199,2]
[366470311,1750275041627,-153.64747841,0.000199,2]
[366470313,1750275041638,-237.0,0.000199,2]
[366470315,1750275041648,-1100.0,0.000199,7]
[366470317,1750275041657,-3900.1735311,0.000199,2]
[366470320,1750275041667,-1293.2782,0.000199,2]
[366470321,1750275041677,-177.31748285,0.000199,2]
[366470324,1750275041687,-376.0,0.000199,2]
[366470326,1750275041696,-179.32368022,0.000199,2]
[366470327,1750275041705,-2882.6150782,0.000199,2]
[366470330,1750275041717,-1322.98753348,0.000199,2]
[366470332,1750275041727,-387.7477276,0.0001994,2]
[366470334,1750275041736,-514.0,0.0001997,2]
[366470336,1750275041745,-500.0,0.00019973,2]
[366470338,1750275041755,-500.0,0.00019973,2]
[366470340,1750275041764,-500.0,0.00019973,2]
[366470342,1750275041774,-150.0,0.00019988,2]
[366470344,1750275041783,-150.0,0.00019988,2]
[366470346,1750275041792,-150.0,0.00019988,2]
[366470348,1750275041801,-150.0,0.00019988,2]
[366470350,1750275041811,-150.37,0.0001999,2]
[366470352,1750275041821,-150.37,0.0001999,2]
[366470354,1750275041830,-150.37,0.0001999,2]
[366470356,1750275041839,-150.37,0.0001999,2]
[366470358,1750275041849,-150.37,0.0001999,2]
[366470360,1750275041858,-150.37,0.0001999,2]
[366470362,1750275041868,-500.0,0.00019995,2]
[366470364,1750275041878,-500.0,0.00019995,2]
[366470366,1750275041888,-500.0,0.00019995,2]
[366470368,1750275041898,-177.51814452,0.00019995,2]
[366470370,1750275041908,-151.0,0.00019996,2]
[366470372,1750275041918,-10262.9652833,0.00019996,2]
[366470374,1750275041927,-6309.4499139,0.00019996,2]
[366470376,1750275041937,-294.1866381,0.00019996,2]
[366470378,1750275041946,-184.0202554,0.00019996,2]
[366470380,1750275041956,-88.6085592,0.00019996,2]
[366470386,1750275042005,-3879.33182505,0.00019996,2]
[366470388,1750275042018,-607.46602351,0.00019996,2]
[366470396,1750275042087,-23495.95414624,0.00019996,2]
[366470398,1750275042098,-2192.3978009,0.00019996,2]
[366470400,1750275042108,-246.1467856,0.00019996,2]
[366470402,1750275042117,-300.0,0.00019999,2]
[366470404,1750275042126,-175.8,0.00019999,2]
[366470406,1750275042138,-150.0,0.00019999,2]
[366470408,1750275042147,-162.01580163,0.00019999,2]
[366470410,1750275042157,-249.45232906,0.00019999,2]
[366470412,1750275042167,-385.18618483,0.00019999,2]
[366470414,1750275042176,-9025.78802656,0.0002,2]
[366470417,1750275042186,-109791.70941267,0.0002,2]
[366470419,1750275042196,-24777.05315431,0.0002,2]
[366470611,1750275044117,-962.58590906,0.0002,2]
[366470642,1750275044409,-3612.86433108,0.0002,2]
[366470855,1750275046385,-1000.0,0.00018237,2]
[366470857,1750275046395,-4132.54658922,0.0002,2]
[366470872,1750275046565,-745.15467324,0.0002,2]
[366470877,1750275046602,-18193.18169998,0.0002,2]
[366470890,1750275046712,-10010.3215043,0.0002,2]
[366471240,1750275204924,489.464098,0.00024649,120]
[366471247,1750275405398,1691.10259652,0.000245,120]
[366471282,1750276222854,150.0,0.00018001,29]
[366471283,1750276223078,150.0,0.00018001,29]
[366471286,1750276231530,-201.0,0.00016284,2]
[366471287,1750276231540,-51.82824404,0.00017125,3]
[366471288,1750276231552,-149.17175596,0.00017125,3]
[366471289,1750276231562,-259.91941771,0.00017184,2]
[366471290,1750276231571,-162.1,0.0001785,2]
[366471291,1750276231581,-211.04657351,0.0001785,2]
[366471292,1750276231602,-38.95342649,0.0001785,2]
[366471293,1750276231612,-201.0,0.00017965,4]
[366471294,1750276231622,-220.09128203,0.00018642,2]
[366471295,1750276231634,-184.66070097,0.00018642,2]
[366471296,1750276231643,-86.75372703,0.00018736,2]
[366471297,1750276231655,-76.78627297,0.00018736,2]
[366471298,1750276231665,-201.0,0.00018806,5]
[366471299,1750276231674,-18.02054703,0.00018829,2]
[366471300,1750276231686,-181.97945297,0.00018829,2]
[366471301,1750276231696,-1200.0,0.00018876,2]
[366471302,1750276231706,-280.01,0.00018877,2]
[366471303,1750276231716,-666.0,0.00018877,2]
[366471304,1750276231726,-1000.0,0.00018877,2]
[366471305,1750276231736,-2315.2407135,0.00018881,2]
[366471306,1750276231746,-2000.0,0.000189,2]
[366471307,1750276231755,-734.21915084,0.000189,2]
[366471308,1750276231764,-541.11535707,0.00018962,2]
[366471309,1750276231774,-207.4,0.00018962,2]
[366471310,1750276231784,-673.22,0.00019013,2]
[366471311,1750276231794,-151.0,0.00019178,2]
[366471312,1750276231803,-734.21915083,0.00019521,2]
[366471313,1750276231813,-300.0,0.00019635,2]
[366471314,1750276231823,-250.0,0.00019635,2]
[366471315,1750276231832,-250.0,0.00019635,2]
[366471316,1750276231842,-201.0,0.00019647,6]
[366471317,1750276231852,-300.0,0.000197,7]
[366471318,1750276231863,-156.587,0.00019726,2]
[366471319,1750276231874,-1354.0,0.000198,2]
[366471320,1750276231883,-600.0,0.000198,7]
[366471321,1750276231893,-882.976,0.00019889,2]
[366471322,1750276231903,-942.41676759,0.00019899,2]
[366471323,1750276231913,-307.263761,0.000199,2]
[366471324,1750276231923,-23388.3231,0.000199,2]
[366471325,1750276231933,-171.55203436,0.000199,2]
[366471326,1750276231942,-3510.15617799,0.000199,2]
[366471327,1750276231952,-153.64747841,0.000199,2]
[366471328,1750276231962,-159.58573461,0.000199,2]
[366471329,1750276231972,-1000.0,0.000199,7]
[366471330,1750276231981,-3785.04235053,0.000199,2]
[366471331,1750276231991,-833.92080167,0.00019977,2]
[366471332,1750276231999,-151.0,0.00019984,2]
[366471333,1750276232009,-151.0,0.00019984,2]
[366471334,1750276232018,-253.88281324,0.00019984,2]
[366471335,1750276232028,-500.0,0.00019984,2]
[366471336,1750276232038,-177.86197304,0.00019984,2]
[366471337,1750276232048,-725.72403528,0.0001999,3]
[366471338,1750276232058,-2235.4013074,0.0001999,2]
[366471339,1750276232068,-160.96,0.0001999,2]
[366471340,1750276232078,-160.96,0.0001999,2]
[366471342,1750276232087,-150.37,0.0001999,2]
[366471343,1750276232097,-150.37,0.0001999,2]
[366471344,1750276232107,-150.37,0.0001999,2]
[366471345,1750276232116,-150.37,0.0001999,2]
[366471347,1750276232127,-22.5948397,0.00019995,2]
[366471350,1750276232139,-163.79606525,0.00019995,2]
[366471352,1750276232149,-985.85501034,0.00019996,2]
[366471354,1750276232161,-115.70689256,0.00019996,2]
[366471356,1750276232170,-1801.9556078,0.00019996,2]
[366471358,1750276232179,-3129.2509437,0.00019996,2]
[366471360,1750276232189,-40.98668533,0.00019996,2]
[366471362,1750276232201,-324.05186057,0.00019996,2]
[366471364,1750276232211,-2142.4129727,0.00019996,2]
[366471366,1750276232220,-4433.48032107,0.00019996,2]
[366471371,1750276232261,-684.71908266,0.00019996,2]
[366471375,1750276232290,-18734.80216067,0.00019996,2]
[366471377,1750276232300,-2766.09063932,0.00019996,2]
[366471379,1750276232311,-496.496,0.00019996,2]
[366471382,1750276232323,-1110.33088506,0.00019996,2]
[366471384,1750276232334,-321.29154664,0.00019996,2]
[366471388,1750276232367,-1114.58118866,0.00019996,2]
[366471390,1750276232378,-1865.07049825,0.00019996,2]
[366471395,1750276232409,-1280.86813107,0.00019996,2]
[366471397,1750276232422,-597.34073294,0.00019996,2]
[366471402,1750276232467,-4307.73120198,0.00019996,2]
[366471405,1750276232480,-2059.8763163,0.00019996,2]
[366471407,1750276232491,-2238.11210102,0.00019996,2]
[366471409,1750276232503,-3131.49389417,0.00019996,2]
[366471411,1750276232514,-267.59430731,0.00019996,2]
[366471727,1750276237492,-226.94,0.00018877,2]
[366471728,1750276237502,-676.05996328,0.0001999,2]
[366471729,1750276237584,-286.15003672,0.0001999,2]
[366471730,1750276237594,-962.21,0.0001999,2]
[366471731,1750276237604,-1725.11675537,0.00019996,2]
[366471732,1750276237616,-7433.54734781,0.00019996,2]
[366471733,1750276237628,-1136.6466888,0.00019996,2]
[366471734,1750276237638,-888.6996498,0.00019996,2]
[366471735,1750276237648,-435.02700006,0.00019996,2]
[366471736,1750276237658,-300.0,0.00019999,2]
[366471737,1750276237668,-155.0,0.00019999,2]
[366471738,1750276237677,-168.47,0.00019999,2]
[366471739,1750276237688,-150.0,0.00019999,2]
[366471740,1750276237698,-359.10674191,0.0002,2]
[366471933,1750276239756,-54536.74796443,0.0002,2]
[366471935,1750276239765,-4512.89401328,0.0002,2]
[366471937,1750276239774,-21153.92687405,0.0002,2]
[366471939,1750276239784,-18833.93114824,0.0002,2]
[366471983,1750276240196,-997.7625,0.0002,2]
[366471986,1750276240208,-5215.0,0.0002,2]
[366472219,1750276242530,-829.25077357,0.0002,2]
[366472226,1750276242590,-1053.42761003,0.0002,2]
[366472234,1750276242650,-1216.76127898,0.0002,2]
[366472311,1750276243373,-6293.71130159,0.0002,2]
[366472313,1750276243386,-3765.25464603,0.0002,2]
[366472582,1750276246019,-556.39945294,0.00019996,2]
[366472583,1750276246029,-21592.66304927,0.0002,2]
[366472584,1750276246040,-582.26799582,0.0002,2]
[366472585,1750276246051,-1704.863,0.0002,2]
[366472586,1750276246096,-10899.5358,0.0002,2]
[366472598,1750276246221,-491.97291328,0.0002,2]
[366472602,1750276246249,-400.0,0.0002,2]
[366472610,1750276246310,-2598.36123077,0.0002,2]
[366472612,1750276246319,-302.83706452,0.0002,2]
[366472614,1750276246330,-4983.71758836,0.0002,2]
[366473163,1750276354308,267.57,0.00013699,2]
[366473172,1750276605729,250.0,0.00015,2]
[366473180,1750276870757,40000.0,0.00016,2]
[366473181,1750276870778,40000.0,0.00016,2]
[366473182,1750276870800,12197.48529403,0.00016,2]
[366473192,1750276907781,1001.38567899,0.00016,2]
[366473201,1750277191158,-1000.0,0.00017,2]
[366473202,1750277191179,-295.38195454,0.00018388,2]
[366473203,1750277191202,-201.0,0.00018488,2]
[366473204,1750277191225,-1200.0,0.00018659,2]
[366473205,1750277191246,-300.0,0.00018659,2]
[366473206,1750277191268,-1836.64835521,0.0001866,2]
[366473716,1750277431993,-1537.7659135,0.00016985,2]
[366473717,1750277432006,-354.28150031,0.00016985,2]
[366473718,1750277432018,-271.27830777,0.00016985,2]
[366473719,1750277432027,-201.0,0.00018371,2]
[366473720,1750277432037,-217.40776067,0.0001856,2]
[366473721,1750277432047,-280.01,0.00018658,2]
[366473722,1750277432056,-300.0,0.00018659,2]
[366473723,1750277432066,-295.97515677,0.00018659,2]
[366473724,1750277432077,-904.02484323,0.00018659,2]
[366473725,1750277432087,-22063.35164479,0.0001866,2]
[366473727,1750277432096,-162.1,0.0001866,2]
[366473730,1750277432106,-200.0,0.0001871,2]
[366473732,1750277432115,-666.0,0.00018754,2]
[366473735,1750277432125,-456.94,0.00018756,2]
[366473737,1750277432135,-200.0,0.00018787,2]
[366473739,1750277432144,-833.92080167,0.00018891,2]
[366473741,1750277432154,-2000.0,0.000189,2]
[366473743,1750277432163,-1000.0,0.00018957,2]
[366473745,1750277432172,-207.4,0.00018976,2]
[366473747,1750277432182,-240.86,0.00019008,2]
[366473749,1750277432193,-250.0,0.00019142,2]
[366473751,1750277432203,-151.0,0.00019178,2]
[366473753,1750277432212,-217.40776066,0.0001918,2]
[366473755,1750277432222,-201.0,0.00019276,3]
[366473757,1750277432231,-167.57,0.00019526,2]
[366473760,1750277432241,-268.855791,0.00019599,2]
[366473762,1750277432250,-300.0,0.000197,7]
[366473764,1750277432260,-156.587,0.00019726,2]
[366473766,1750277432269,-217.40776066,0.000198,2]
[366473768,1750277432279,-700.0,0.000198,7]
[366473770,1750277432288,-600.0,0.000198,2]
[366473772,1750277432298,-706.381,0.00019853,2]
[366473774,1750277432309,-151.0,0.00019888,2]
[366473776,1750277432318,-159.69892678,0.00019888,2]
[366473778,1750277432327,-426.0792132,0.00019888,2]
[366473780,1750277432336,-151.0,0.00019888,2]
[366473782,1750277432346,-500.0,0.00019888,2]
[366473784,1750277432355,-500.0,0.00019888,2]
[366473786,1750277432365,-500.0,0.00019888,2]
[366473788,1750277432374,-250.0,0.00019888,2]
[366473790,1750277432383,-211.79076971,0.00019888,2]
[366473845,1750277432922,-88.20923029,0.00019888,2]
[366473847,1750277432932,-228.6802,0.00019888,2]
[366473849,1750277432943,-1004.42124907,0.00019899,2]
[366473851,1750277432954,-735.55226982,0.00019899,2]
[366473853,1750277432963,-1559.07108812,0.000199,2]
[366473857,1750277432992,-24118.42005364,0.000199,2]
[366473859,1750277433004,-520.43658697,0.000199,2]
[366473861,1750277433016,-8155.02757127,0.000199,2]
[366473863,1750277433025,-171.55203436,0.000199,2]
[366473865,1750277433036,-153.64747841,0.000199,2]
[366473867,1750277433046,-1000.0,0.000199,7]
[366473869,1750277433056,-181.24996605,0.000199,2]
[366473871,1750277433066,-159.58573453,0.000199,2]
[366473873,1750277433076,-3717.05508506,0.000199,2]
[366473875,1750277433086,-350.0,0.0001998,2]
[366473877,1750277433095,-150.37,0.0001999,2]
[366473879,1750277433105,-150.37,0.0001999,2]
[366473881,1750277433114,-150.37,0.0001999,2]
[366473883,1750277433124,-167.42,0.0001999,2]
[366473885,1750277433134,-188.42,0.0001999,2]
[366473887,1750277433143,-188.42,0.0001999,2]
[366473889,1750277433153,-159.82030451,0.00019995,2]
[366473891,1750277433163,-1418.3857859,0.00019996,2]
[366473893,1750277433173,-1889.820492,0.00019996,2]
[366473895,1750277433183,-19048.48554791,0.00019996,2]
[366473897,1750277433197,-4407.15925479,0.00019996,2]
[366474365,1750277437874,-971.99848032,0.00019996,2]
[366474366,1750277437885,-3943.47880346,0.00019996,2]
[366474367,1750277437897,-298.34808751,0.00019996,2]
[366474368,1750277437916,-1674.96271831,0.00019996,2]
[366474369,1750277437933,-3649.8275649,0.00019996,2]
[366474370,1750277437943,-161.45,0.00019999,2]
[366474371,1750277437953,-150.0,0.00019999,2]
[366474372,1750277437962,-500.0,0.0002,2]
[366474373,1750277437971,-2256.44700664,0.0002,2]
[366474374,1750277437980,-27447.92735317,0.0002,2]
[366474376,1750277437990,-5016.28241164,0.0002,2]
[366474378,1750277438000,-1490.31615599,0.0002,2]
[366474380,1750277438009,-4327.36635928,0.0002,2]
[366474382,1750277438018,-483.71830372,0.0002,2]
[366474384,1750277438028,-2500.0,0.0002,2]
[366474386,1750277438037,-169593.52403926,0.0002,4]
[366474569,1750277439859,-685.27120748,0.000199,2]
[366474571,1750277439869,-30659.39877418,0.0002,4]
[366474573,1750277439879,-10574.45515217,0.0002,2]
[366474575,1750277439889,-3950.0,0.0002,2]
[366474577,1750277439899,-1258.38147251,0.0002,2]
[366474579,1750277439908,-4897.49339367,0.0002,2]
[366474589,1750277439998,-2770.34690872,0.0002,2]
[366474596,1750277440054,-4235.18485122,0.0002,2]
[366474598,1750277440064,-1015.39134574,0.0002,2]
[366474600,1750277440074,-2781.9466441,0.0002,2]
[366474602,1750277440084,-3209.40018413,0.0002,2]
[366474613,1750277440181,-854.34209777,0.0002,2]
[366474931,1750277443397,-10102.70034186,0.0002,2]
[366475161,1750277445883,-5333.59999998,0.00018792,2]
[366475760,1750277720289,276.07,0.00013699,2]
[366475779,1750278306707,1001.0,0.0002465,120]
[366475782,1750278371695,201.0,0.00015371,2]
[366475784,1750278407973,250.0,0.00015,2]
[366475826,1750278632249,-201.0,0.00016363,3]
[366475827,1750278632259,-300.0,0.00016599,2]
[366475828,1750278632269,-118.83773347,0.00016599,2]
[366475829,1750278632330,-1081.16226653,0.00016599,2]
[366475831,1750278632339,-234.63773347,0.000166,2]
[366475833,1750278632366,-2164.30819884,0.000166,2]
[366475834,1750278632410,-3603.29758592,0.000166,2]
[366475837,1750278637811,-1057.6207184,0.000166,2]
[366475857,1750278638364,-7014.36761669,0.000166,2]
[366475859,1750278638376,-560.416,0.000166,2]
[366475882,1750278640063,-731.46596712,0.000166,2]
[366475883,1750278640074,-2322.72639696,0.000166,2]
[366475884,1750278640138,-1784.70335202,0.000166,2]
[366475885,1750278640264,-998.54864532,0.000166,2]
[366475886,1750278640276,-4527.90778526,0.000166,2]
[366475887,1750278640286,-201.0,0.00017354,4]
[366475888,1750278640296,-3774.69691119,0.00017459,2]
[366475889,1750278640307,-4408.37865789,0.00017459,2]
[366475890,1750278640316,-300.0,0.00017499,2]
[366475891,1750278640325,-36645.3038878,0.000175,2]
[366475892,1750278640378,-10387.66700001,0.000175,2]